Cogmind - Beta 16.1 @@@ ROGUE MODE // 2026.03.02 @ 21:26:06 Player: delto Result: Destroyed by H-66 Slayer with Gauss Rifle Performance ------------- Evolutions (4) 2000 Regions Visited (8) 1600 Robots Destroyed (72) 360 Value Destroyed (2598) 2598 Prototype IDs (0) 0 Alien Tech Used (0) 0 Bonus (-125) -125 TOTAL SCORE: 6433 Bonus ------- Follower Combat Kills 84 Friendly Fire -209 Cogmind --------- Core Integrity 0/850 Matter 246/300 Energy 290/290 System Corruption 2% Temperature Cool (0) Movement Walking (120) Location -6/Lower Caves Parts ------- > --- POWER (1) -------- Improved Deuterium Engine > --- PROPULSION (6) --- Carbon-fiber Leg > --- UTILITY (6) ------ Small Storage Unit Advanced Visual Processing Unit > --- WEAPON (2) ------- (None) > --- INVENTORY (8) ---- Angular Momentum Engine Heavy Laser Peak State ------------ > --- POWER ------------ Improved Deuterium Engine > --- PROPULSION ------- Armored Treads Advanced Treads Advanced Treads Advanced Treads Advanced Treads Advanced Treads > --- UTILITY ---------- Medium Storage Unit Advanced Visual Processing Unit Transmission Jammer Phase Shifter Improved Medium Armor Plating Hardlight Generator > --- WEAPON ----------- Gauss Cannon Gauss Cannon > --- INVENTORY -------- Improved Deuterium Engine Improved Deuterium Engine Advanced Treads Advanced Treads Trap Scanner Launcher Guidance Computer Improved Weapon Shielding Improved Medium Armor Plating Tractor Beam Missile Launcher [Rating: 53] Favorites ----------- Power Light Nuclear Core Engine Light Angular Momentum Engine Power Core Light Nuclear Core Propulsion Advanced Treads Treads Advanced Treads Leg Carbon-fiber Leg Wheel Wheel Hover Unit Improved Hover Unit Utility Trap Scanner Device Trap Scanner Storage Medium Storage Unit Processor Advanced Visual Processing Unit Protection Hardened Light Armor Plating Weapon Gauss Cannon Energy Gun EM Pulse Gun Energy Cannon Particle Cannon Ballistic Gun Shotgun Ballistic Cannon Gauss Cannon Launcher Shock Bomb Launcher Build | -11 -10 -9 -9 -8 -8 -8 -6 -6 ------- Run | Yrd Mat Mat Min Mat Sto Rec Fac Low Slots Evolved 8 | . . 2 . 2 . . 4 . Power . | . . . . . . . . . Propulsion 4 | . . 1 . 1 . . 2 . Utility 4 | . . 1 . 1 . . 2 . Weapon . | . . . . . . . . . Parts Attached 86 | 6 6 29 2 13 8 4 8 10 Power 9 | 1 1 1 . 2 1 . 1 2 Engine 8 | 1 1 . . 2 1 . 1 2 Core 1 | . . 1 . . . . . . Reactor . | . . . . . . . . . Propulsion 22 | 2 2 8 . 1 2 2 2 3 Treads 17 | 1 . 7 . 1 2 2 2 2 Leg 1 | . . . . . . . . 1 Wheel 1 | 1 . . . . . . . . Hover 3 | . 2 1 . . . . . . Flight . | . . . . . . . . . Utility 41 | 1 1 15 2 7 4 2 5 4 Device 12 | . 1 3 . 3 1 . 3 1 Storage 5 | 1 . . 1 1 . . . 2 Processor 8 | . . 7 . . . 1 . . Hackware . | . . . . . . . . . Protection 16 | . . 5 1 3 3 1 2 1 Artifact . | . . . . . . . . . Weapon 14 | 2 2 5 . 3 1 . . 1 Energy Gun 2 | 2 . . . . . . . . Energy Cannon 1 | . . 1 . . . . . . Ballistic Gun 5 | . 2 2 . 1 . . . . Ballistic Cannon 2 | . . . . 1 1 . . . Launcher 4 | . . 2 . 1 . . . 1 Special Weapon . | . . . . . . . . . Impact Weapon . | . . . . . . . . . Slashing Weapon . | . . . . . . . . . Piercing Weapon . | . . . . . . . . . Special Melee Weapon . | . . . . . . . . . Unidentified Prototypes . | . . . . . . . . . Parts Lost 37 | . . 3 5 3 4 . . 22 Power 3 | . . . 1 . . . . 2 Propulsion 12 | . . 1 . 1 3 . . 7 Utility 16 | . . 1 2 2 1 . . 10 Weapon 6 | . . 1 2 . . . . 3 Highest Loss Streak 20 | . . 3 3 1 2 . . 20 To Critical Strikes . | . . . . . . . . . Average Backups 8 | 1 6 7 7 8 9 10 9 9 Power . | . . . . . 1 1 1 1 Propulsion 2 | 1 5 2 4 2 2 4 2 . Utility 4 | . . 4 2 3 3 4 4 5 Weapon . | . . . 1 1 1 1 1 . Tool/Special . | . . . . . . . . . Unused Backups 42 | . 3 17 . 6 5 . 7 4 Power 6 | . . . . . 2 . 3 1 Propulsion 13 | . 2 8 . 1 1 . 1 . Utility 15 | . . 8 . 2 . . 3 2 Weapon 8 | . 1 1 . 3 2 . . 1 Tool/Special . | . . . . . . . . . Average Slot Usage (%) 94 | . 88 99 92 87 99 100 99 64 Engine 5 | . 14 1 . 1 9 9 5 4 Core 2 | . . 9 8 . . . . . Treads 31 | . 2 28 33 35 35 36 39 24 Hover 2 | . 22 4 . . . . . . Device 17 | . 13 17 . 15 20 23 18 9 Storage 9 | . 14 11 11 9 9 9 6 4 Processor 1 | . . 1 . . . 2 6 6 Protection 5 | . . 2 21 10 6 . 7 4 Energy Cannon 1 | . . 7 . . . . . . Ballistic Gun 2 | . 9 7 . 4 . . . . Ballistic Cannon 8 | . . . . . 17 18 13 8 Launcher 3 | . . 6 18 7 . . . . Peak Build Rating 53 | 7 12 25 25 33 37 36 53 50 Average Rating 29 | 4 9 22 23 26 33 34 48 32 On Entrance 23 | . 6 10 25 17 33 35 35 50 Avg Prop Armor Cover (%) 14 | 13 11 . . . . . 16 12 Naked Turns . | . . . . . . . . . Heaviest Build 228 | 14 15 32 32 33 43 45 49 228 Greatest Support 130 | 20 14 66 60 82 86 86 130 130 Greatest Overweight (x) 4 | 1 2 . . . . . . 4 Average Overweight (x) . | . . . . . . . . . Largest Inventory Capacity 35 | 8 8 8 8 10 10 10 10 35 Average Capacity 10 | 6 8 8 8 9 10 10 10 19 Most Carried 16 | 3 8 8 8 10 10 10 10 16 Average Carried 8 | 1 6 7 7 8 9 9 9 9 Final Capacity 10 | 8 8 8 8 10 10 10 10 8 Final Carried 10 | 2 8 8 8 10 10 10 10 2 Class Distribution -------------------- 97% | Mutant Dominant Class ---------------- Mutant | -10/Materials Mutant | -9/Materials Mutant | -9/Mines Mutant | -8/Materials Mutant | -8/Storage Mutant | -8/Recycling Mutant | -6/Factory Mutant | -6/Lower Caves Resources | -11 -10 -9 -9 -8 -8 -8 -6 -6 ----------- Run | Yrd Mat Mat Min Mat Sto Rec Fac Low Matter Collected 3838 | 210 150 835 75 454 1150 128 489 347 Remotely 1871 | . . . . 375 993 128 221 154 Salvage Created 2572 | . 53 962 39 629 416 57 189 227 Parts 148 | . 4 63 4 31 22 6 9 9 Haulers Intercepted . | . . . . . . . . . Recyclers Shooed 1 | . . 1 . . . . . . Parts Field Recycled . | . . . . . . . . . Retrieved Matter . | . . . . . . . . . Parts Self-Destructed 11 | . . . . . . . . 11 Prevented . | . . . . . . . . . Parts Restored . | . . . . . . . . . Kills | -11 -10 -9 -9 -8 -8 -8 -6 -6 ------- Run | Yrd Mat Mat Min Mat Sto Rec Fac Low Combat Hostiles Destroyed 55 | . 1 16 1 12 12 1 7 5 Melee 4 | . . 1 . 3 . . . . Guns 12 | . 1 4 . 7 . . . . Cannons 36 | . . 9 . 2 12 1 7 5 AOE 1 | . . 1 . . . . . . Classes Destroyed 13 | . 2 7 1 1 . . 1 1 Worker 2 | . . 1 1 . . . . . Builder 3 | . . 2 . . . 1 . . Recycler 2 | . . 1 . 1 . . . . Mechanic 1 | . . 1 . . . . . . Operator 1 | . . 1 . . . . . . Watcher 7 | . 2 4 . . . . 1 . Swarmer 5 | . 1 . . . 4 . . . Grunt 27 | . . 11 . 7 5 . 2 2 Brawler 5 | . . . . 3 1 . . 1 Duelist 1 | . . . . . . . . 1 Sentry 15 | . . 5 . 2 3 1 3 1 Demolisher 1 | . . . 1 . . . . . Programmer 2 | . . . . . . . 2 . Best Kill Streak 5 | . 1 5 1 4 4 1 4 5 Combat Bots Only 5 | . 1 3 1 3 4 1 4 5 Max Kills in Single Turn 3 | . 1 3 1 1 2 1 1 1 Gunslinging . | . . . . . . . . . Exploded 1 | . . 1 . . . . . . Melee 1 | . . 1 . 1 . . . . Uniques/NPCs Destroyed . | . . . . . . . . . Combat | -11 -10 -9 -9 -8 -8 -8 -6 -6 -------- Run | Yrd Mat Mat Min Mat Sto Rec Fac Low Hostile Shots Fired 653 | . 8 122 26 62 70 5 126 234 Missed 167 | . 1 28 3 18 13 2 51 51 Hits 486 | . 7 94 23 44 57 3 75 183 Melee 17 | . . . . 4 3 . . 10 Projectile 469 | . 7 94 23 40 54 3 75 173 AOE 25 | . . . 24 . . . 1 . Critical Strikes 21 | . . 4 . 4 2 . 1 10 Actively Blocked 1 | . . . . . 1 . . . Part Disruptions 1 | . . . . . . . 1 . Damage Taken 7908 | . 165 1384 1020 714 727 30 585 3283 Core 1158 | . 52 121 38 28 56 . 89 774 Absorbed by Shields 532 | . . . . . 168 12 252 100 Redirected to Shielding 108 | . . . . . 30 7 9 62 Ignored by Resistances 4 | . . . . . . . . 4 Regen/Repaired (Parts) 169 | . . . . . 169 . . . Core Remaining (%) 80 | 100 79 . 60 . . 84 . . Volleys Fired 194 | 1 8 67 5 38 27 4 29 15 Largest 2 | 2 2 2 2 2 2 2 2 2 Hottest 91 | 80 46 91 72 65 80 80 80 80 Shots Fired 324 | 2 9 117 6 44 54 8 58 26 Gun 104 | 2 9 58 . 35 . . . . Cannon 198 | . . 47 . 6 54 8 58 25 Launcher 22 | . . 12 6 3 . . . 1 Special . | . . . . . . . . . Kinetic 253 | . 9 58 . 41 54 8 58 25 Thermal 47 | . . 47 . . . . . . Explosive 1 | . . . . . . . . 1 Electromagnetic 23 | 2 . 12 6 3 . . . . Robot Hit Streak 15 | 2 2 7 2 15 6 5 13 6 Robot Miss Streak 5 | . 4 4 1 3 5 2 3 2 Penetration Max 1 | . . . . . 1 . 1 1 Secondary Targets . | . . . . . . . . . Shots Hit Robots 196 | 2 5 64 2 31 28 4 43 17 Core Hits 106 | 1 4 36 1 19 18 2 13 12 Critical Kills . | . . . . . . . . . Critical Parts Destroyed 1 | . . . . 1 . . . . Critical Strikes 12 | . . . . 1 4 . 6 1 Destroy 1 | . . . . 1 . . . . Blast 11 | . . . . . 4 . 6 1 Melee Attacks . | . . . . . . . . . Impact . | . . . . . . . . . Slashing . | . . . . . . . . . Piercing . | . . . . . . . . . Sneak Attacks . | . . . . . . . . . Combat Hostiles . | . . . . . . . . . Follow-up Attacks . | . . . . . . . . . Damage Inflicted 5681 | 26 65 1814 201 649 1020 142 1215 549 Guns 1133 | 26 65 500 . 542 . . . . Cannons 3600 | . . 680 . 82 1020 142 1215 461 Explosions 919 | . . 630 201 . . . . 88 Melee . | . . . . . . . . . Ramming 29 | . . 4 . 25 . . . . Kinetic 4027 | . 65 500 . 624 1020 142 1215 461 Thermal 998 | . . 998 . . . . . . Explosive 88 | . . . . . . . . 88 Electromagnetic 539 | 26 . 312 201 . . . . . Impact . | . . . . . . . . . Slashing . | . . . . . . . . . Piercing . | . . . . . . . . . Highest Corruption 2 | . 2 1 1 . . . 2 2 Average Corruption 1 | . 2 1 1 . . . 1 2 Corruption Purged . | . . . . . . . . . Corruption Blocked . | . . . . . . . . . Effects 10 | . 2 . 2 . . . 1 5 Message Errors 3 | . . . 1 . . . . 2 Matter Fused 3 | . 1 . . . . . . 2 Heat Flow Errors 1 | . 1 . . . . . . . Energy Discharges 1 | . . . . . . . . 1 Data Loss (minor) 1 | . . . 1 . . . . . Data Loss (major) 1 | . . . . . . . 1 . Overload Shots . | . . . . . . . . . Overflow Damage 176 | . . 140 . 5 11 . 20 . Projectiles 36 | . . . . 5 11 . 20 . Explosions 140 | . . 140 . . . . . . Melee . | . . . . . . . . . Knockbacks 14 | . . . . 1 5 . 5 3 Impact . | . . . . . . . . . Kinetic 13 | . . . . 1 4 . 5 3 Secondary 1 | . . . . . 1 . . . Self-Inflicted Damage 136 | . . 131 5 . . . . . Shots 3 | . . 2 1 . . . . . Rammed 6 | . . 1 . 5 . . . . Targets Rammed 10 | . . 2 . 8 . . . . Kicked . | . . . . . . . . . Crushed 4 | . . 1 . 3 . . . . Highest Temperature 317 | 18 87 317 53 193 135 54 30 289 Average Temperature 83 | 12 43 108 35 56 37 21 13 149 Received Heat Transfer 2059 | . 24 567 24 351 254 12 151 676 Effects 1 | . . . . . . . . 1 Interference 1 | . . . . . . . . 1 Siege Activations . | . . . . . . . . . Martial Activations . | . . . . . . . . . Shielding Activations . | . . . . . . . . . Robots Disrupted . | . . . . . . . . . Combat Hostiles . | . . . . . . . . . Robots Corrupted 2 | . . 1 1 . . . . . Combat Hostiles 2 | . . 1 1 . . . . . Parts Fried 3 | . . 2 . . 1 . . . Impact Corruptions . | . . . . . . . . . Robots Melted . | . . . . . . . . . Combat Hostiles . | . . . . . . . . . Parts Melted . | . . . . . . . . . Heat Transferred 1421 | . . 1421 . . . . . . Parts Sabotaged . | . . . . . . . . . Parts Stolen . | . . . . . . . . . Parts Stripped . | . . . . . . . . . Power Chain Reactions 1 | . . 1 . . . . . . Alert | -11 -10 -9 -9 -8 -8 -8 -6 -6 ------- Run | Yrd Mat Mat Min Mat Sto Rec Fac Low Maximum Alert Level . | . . . . . . . . . Low Security (%) 100 | 100 100 100 100 100 100 100 100 . Level 1 . | . . . . . . . . . Level 2 . | . . . . . . . . . Level 3 . | . . . . . . . . . Level 4 . | . . . . . . . . . Level 5 . | . . . . . . . . . High Security . | . . . . . . . . . Max Security . | . . . . . . . . . Peak Influence 177 | . 173 159 51 142 177 30 108 . Initial 54 | . . 54 51 1 49 30 . . Average 48 | . 87 87 11 35 53 2 25 . Influence Increases 2149 | . 260 667 40 342 385 32 233 190 Destroy 0b10 Robot/C 1220 | . 140 320 20 240 240 20 140 100 Destroy 0b10 Robot/NC 80 | . 10 50 5 5 . 5 5 . Destroy Leader 284 | . 34 88 . 50 50 . 62 . Allied During Kill 13 | . 13 . . . . . . . Successful Hack 88 | . 9 17 . 29 26 4 3 . Disable Machine 150 | . 30 90 . 15 . . 15 . Destroy Structure 89 | . 24 27 . 3 24 3 8 . Partial Spotted 30 | . . 30 . . . . . . Lose Combat Pursuer 195 | . . 45 15 . 45 . . 90 Influence Decreases 2123 | . 130 665 167 229 426 109 219 178 Entered New Map 283 | . . 76 81 4 69 47 . 6 Time Decay 1645 | . 110 559 71 205 337 62 219 82 Lost Part 175 | . . 30 15 20 20 . . 90 Lost Ally 20 | . 20 . . . . . . . Squads Dispatched 12 | . 3 . . . 3 . 6 . Investigation 3 | . 2 . . . 1 . . . Extermination 2 | . . . . . . . 2 . Reinforcement 2 | . 1 . . . . . 1 . Assault 2 | . . . . . 2 . . . Garrison 3 | . . . . . . . 3 . Intercept . | . . . . . . . . . Searches Triggered . | . . . . . . . . . Construction Impeded . | . . . . . . . . . Haulers Reinforced . | . . . . . . . . . Active Scanning Responses . | . . . . . . . . . Cargo Convoy Interrupts . | . . . . . . . . . Stealth | -11 -10 -9 -9 -8 -8 -8 -6 -6 --------- Run | Yrd Mat Mat Min Mat Sto Rec Fac Low Distress Signals 9 | . 2 2 . 3 2 . . . Communications Jammed . | . . . . . . . . . Distress Signals . | . . . . . . . . . Times Spotted 131 | . 13 33 4 14 45 2 8 12 Peak Tracking Total 8 | . 4 5 2 4 7 1 2 8 Tactical Retreats 8 | . . 2 1 . 2 . . 3 Traps | -11 -10 -9 -9 -8 -8 -8 -6 -6 ------- Run | Yrd Mat Mat Min Mat Sto Rec Fac Low Traps Triggered 3 | . 1 1 . . 1 . . . Indirectly . | . . . . . . . . . Trap Hack Attempts . | . . . . . . . . . Triggered . | . . . . . . . . . Disarmed . | . . . . . . . . . Reprogrammed . | . . . . . . . . . Reused . | . . . . . . . . . Traps Extracted . | . . . . . . . . . Installed . | . . . . . . . . . Triggered . | . . . . . . . . . Machines | -11 -10 -9 -9 -8 -8 -8 -6 -6 ---------- Run | Yrd Mat Mat Min Mat Sto Rec Fac Low Machines Disabled 12 | . 2 6 . 1 . . 1 2 Max in Single Turn 3 | . . 3 . 1 . . 1 1 Garrison Access 1 | . . . . . 1 . . . Machines Repaired . | . . . . . . . . . Machines Dismantled . | . . . . . . . . . Machines Sabotaged . | . . . . . . . . . Overloaded Fab Kills . | . . . . . . . . . Hacking | -11 -10 -9 -9 -8 -8 -8 -6 -6 --------- Run | Yrd Mat Mat Min Mat Sto Rec Fac Low Machines Accessed 37 | . 6 9 . 4 7 9 2 . Terminals 22 | . 5 5 . 4 4 4 . . Fabricators . | . . . . . . . . . Repair Stations 1 | . . . . . 1 . . . Recycling Units 11 | . 1 2 . . 2 5 1 . Scanalyzers 3 | . . 2 . . . . 1 . Garrison Access . | . . . . . . . . . Total Hacks 77 | . 18 23 . 10 10 13 3 . Successful 43 | . 7 15 . 6 7 6 2 . Failed 33 | . 11 8 . 3 3 7 1 . Catastrophic 4 | . 2 . . . . 1 1 . Database Lockouts 1 | . . . . 1 . . . . Manual 68 | . 18 16 . 11 8 13 2 . Terminals 47 | . 16 11 . 10 5 5 . . Fabricators . | . . . . . . . . . Repair Stations 2 | . . . . . 2 . . . Recycling Units 20 | . 2 5 . . 3 8 2 . Scanalyzers 8 | . . 7 . . . . 1 . Garrison Access . | . . . . . . . . . Terminal Hacks 5 | . 1 . . 3 1 . . . Part Schematic 1 | . . . . 1 . . . . Branch Access Points 1 | . . . . 1 . . . . Terminal Index 3 | . 1 . . 1 1 . . . Fabricator Hacks . | . . . . . . . . . Repair Station Hacks 2 | . . . . . 2 . . . Scan Component 1 | . . . . . 1 . . . Repair 1 | . . . . . 1 . . . Recycling Unit Hacks . | . . . . . . . . . Scanalyzer 6 | . . 6 . . . . . . Insert Component 3 | . . 3 . . . . . . Analyze 2 | . . 2 . . . . . . Retrieve Study 1 | . . 1 . . . . . . Garrison Access Hacks . | . . . . . . . . . Unauthorized Hacks 30 | . 6 9 . 3 4 6 2 . Terminals 17 | . 4 5 . 3 3 2 . . Botnet 17 | . 4 5 . 3 3 2 . . Fabricators . | . . . . . . . . . Repair Stations . | . . . . . . . . . Recycling Units 13 | . 2 4 . . 1 4 2 . Reject 6 | . 1 2 . . . 2 1 . Mask 7 | . 1 2 . . 1 2 1 . Scanalyzers . | . . . . . . . . . Garrison Access . | . . . . . . . . . Data Cores Recovered 2 | . . . . . 2 . . . Used . | . . . . . . . . . Hacking Detections 26 | . 5 7 . 3 3 7 1 . Full Trace Events 1 | . 1 . . . . . . . Feedback Events . | . . . . . . . . . Feedback Blocked . | . . . . . . . . . Robot Schematics Acquired . | . . . . . . . . . Robots Built . | . . . . . . . . . Authchips . | . . . . . . . . . Time . | . . . . . . . . . Total Robot Build Rating . | . . . . . . . . . Part Schematics Acquired 3 | . . 2 . 1 . . . . Parts Built . | . . . . . . . . . Authchips . | . . . . . . . . . Time . | . . . . . . . . . Total Part Build Rating . | . . . . . . . . . Part Studies Acquired 1 | . . 1 . . . . . . Parts Repaired 1 | . . . . . 1 . . . Time 38 | . . . . . 38 . . . Parts Recycled . | . . . . . . . . . Recycled Matter . | . . . . . . . . . Retrieved Matter . | . . . . . . . . . Retrieved Components . | . . . . . . . . . Parts Scanalyzed 2 | . . 2 . . . . . . Part Schematics Acquired 2 | . . 2 . . . . . . Parts Damaged . | . . . . . . . . . Bothacking | -11 -10 -9 -9 -8 -8 -8 -6 -6 ------------ Run | Yrd Mat Mat Min Mat Sto Rec Fac Low Used RIF Installer . | . . . . . . . . . Robots Hacked . | . . . . . . . . . Non-combat . | . . . . . . . . . Combat . | . . . . . . . . . Robot Hacks Applied . | . . . . . . . . . Relay Couplers Released 1 | . . . . . 1 . . . Machine Destruction 1 | . . . . . 1 . . . Fabnet Peak Effective % . | . . . . . . . . . Robots Rewired . | . . . . . . . . . Allies Hacked . | . . . . . . . . . Hacks Repelled . | . . . . . . . . . Allies | -11 -10 -9 -9 -8 -8 -8 -6 -6 -------- Run | Yrd Mat Mat Min Mat Sto Rec Fac Low Total Allies 1 | 1 . . . . . . . . Largest Group 1 | 1 1 . . . . . . . Highest-Rated Group 29 | 29 29 . . . . . . . Highest-Rated Ally 29 | 29 29 . . . . . . . Total Orders . | . . . . . . . . . Ally Attacks 34 | . 34 . . . . . . . Total Damage 562 | . 562 . . . . . . . Kills 6 | . 6 . . . . . . . Allies Corrupted . | . . . . . . . . . Allies Melted . | . . . . . . . . . Intel | -11 -10 -9 -9 -8 -8 -8 -6 -6 ------- Run | Yrd Mat Mat Min Mat Sto Rec Fac Low Active Infowar (turns) 5127 | . 319 1362 . 525 952 839 774 356 Optics 1438 | . . 31 . . . 277 774 356 Terrain 3527 | . 319 1324 . 462 861 561 . . Structural 216 | . . 216 . . . . . . Traps 4104 | . . 1093 . 503 919 838 583 168 Jamming 797 | . . . . . . . 629 168 Robot Analysis Total . | . . . . . . . . . Derelict Logs Recovered 3 | . . . 2 . . . . 1 Drone Launches . | . . . . . . . . . Drone Recoveries . | . . . . . . . . . Exploration | -11 -10 -9 -9 -8 -8 -8 -6 -6 ------------- Run | Yrd Mat Mat Min Mat Sto Rec Fac Low Turns Passed 6636 | 64 326 1641 314 729 1384 853 774 551 Spaces Moved 3959 | 51 438 1039 169 242 678 535 391 416 Core 210 | 3 . . . . . . . 207 Treads 2924 | 2 . 766 169 242 678 535 391 141 Legs 68 | . . . . . . . . 68 Wheels 101 | 46 55 . . . . . . . Hover 656 | . 383 273 . . . . . . Flight . | . . . . . . . . . Fastest Speed 50 | 50 56 52 170 163 151 151 149 50 Average Speed 133 | 90 63 127 170 168 155 151 153 112 Slowest Speed 393 | 160 180 170 170 170 163 153 157 393 Overloaded Moves . | . . . . . . . . . Propulsion Burnouts . | . . . . . . . . . Robots Hopped . | . . . . . . . . . Potential Cave-ins . | . . . . . . . . . Cave-ins Triggered . | . . . . . . . . . Exploration Rate (%) 50 | 3 73 64 43 23 94 90 10 50 Regions Visited 8 Branch Regions 4 Pre-discovered Areas 1 | . . . 1 . . . . . Known Exits Taken 2 | . . . . 1 1 . . . Unknown Exits Taken 6 | 1 1 1 1 . . 1 1 . Scrap Searched 4 | . . . 1 . . . . 3 Spaces Dug . | . . . . . . . . . Terrain Destroyed 71 | . . 28 . 2 23 2 7 9 Melee . | . . . . . . . . . Projectile 40 | . . . . 2 23 2 7 6 AOE 31 | . . 28 . . . . . 3 Terrain Rammed . | . . . . . . . . . Walls Destroyed . | . . . . . . . . . Machines Disabled . | . . . . . . . . . Actions | -11 -10 -9 -9 -8 -8 -8 -6 -6 --------- Run | Yrd Mat Mat Min Mat Sto Rec Fac Low Total 4959 | 64 482 1235 189 518 926 571 502 472 Wait 367 | 4 6 1 12 172 116 13 36 7 Move 3951 | 50 437 1038 168 241 677 534 390 416 Hop . | . . . . . . . . . Pick Up 107 | 2 12 35 1 18 15 4 13 7 Fast Attach 32 | 6 3 11 . 2 1 3 2 4 Attach 35 | . 1 4 2 7 4 . 4 13 Detach 11 | . 3 4 . 1 . . 1 2 Swap 162 | . 2 38 1 19 74 6 16 6 Drop 90 | 1 10 35 . 12 12 7 11 2 Fire 194 | 1 8 67 5 38 27 4 29 15 Melee . | . . . . . . . . . Ram . | . . . . . . . . . Kick . | . . . . . . . . . Crush 10 | . . 2 . 8 . . . . Escape Stasis . | . . . . . . . . . Rewire . | . . . . . . . . . Trap . | . . . . . . . . . Miscellaneous . | . . . . . . . . . Route ------- -11/Scrapyard -10/Materials (discovered 4 exits: *Mat x2 / [*Min x2]) -9/Materials (discovered 3 exits: *Mat x2 / [*Min]) -9/Mines (discovered 2 exits: *Mat x2) -8/Materials -8/Storage (discovered 2 exits: [*Fac] / *Rec) -8/Recycling -6/Factory -6/Lower Caves History --------- Turn | Location | Event 24 | -11/Scrapyard | Discovered new exit (range 16) 41 | -11/Scrapyard | Botcube activated 51 | -11/Scrapyard | Botcube completed mutation into legged form, armed with 1 gun. 65 | -11/Scrapyard | Entered Materials 65 | -10/Materials | Accompanied by 1 ally 65 | -10/Materials | Discovered new exit (range 15) 174 | -10/Materials | Discovered new exit (range 9) 256 | -10/Materials | Discovered new exit (range 14) 312 | -10/Materials | Build established: Mutant 377 | -10/Materials | Discovered new exit (range 9) 391 | -10/Materials | Entered another Materials area 391 | -9/Materials | Evolved 2 slots: Propulsion x1, Utility x1 1153 | -9/Materials | Discovered new exit (range 11) 1448 | -9/Materials | Lost 3 parts (1n1u1w) 1704 | -9/Materials | Discovered new exit (range 10) 1867 | -9/Materials | Discovered new exit (range 15) 2032 | -9/Materials | Entered Mines 2075 | -9/Mines | Learned location of Zion (-7) 2234 | -9/Mines | Assembled infested the area 2300 | -9/Mines | Lost 3 parts (1p1u1w) 2329 | -9/Mines | Discovered new exit (range 6) 2339 | -9/Mines | Discovered new exit (range 8) 2346 | -9/Mines | Entered Materials 2346 | -8/Materials | Evolved 2 slots: Propulsion x1, Utility x1 2964 | -8/Materials | Discovered new exit (range 15) 2970 | -8/Materials | Identified exit to Storage 2970 | -8/Materials | Central database locked down 3075 | -8/Materials | Entered Storage 3076 | -8/Storage | Identified exit to Recycling 3150 | -8/Storage | Repaired Arm. Treads 3238 | -8/Storage | Met 01-MTF 3620 | -8/Storage | Discovered new exit (range 9) 4459 | -8/Storage | Entered Recycling 4459 | -8/Recycling | Accompanied by 1 ally (01-MTF) 4810 | -8/Recycling | Discovered new exit (range 15) 5312 | -8/Recycling | Entered Factory 5312 | -6/Factory | Evolved 4 slots: Propulsion x2, Utility x2 6074 | -6/Factory | Discovered new exit (range 5) 6086 | -6/Factory | Entered Lower Caves 6087 | -6/Lower Caves | Encountered a Warlord checkpoint 6301 | -6/Lower Caves | Spotted B-75 Beast 6384 | -6/Lower Caves | Attracted the attention of an 0b10 outpost 6433 | -6/Lower Caves | Core integrity fell below 50% 6445 | -6/Lower Caves | Core integrity fell below 20% 6466 | -6/Lower Caves | Learned 8 Factory zone layouts 6474 | -6/Lower Caves | Lost 20 parts (2p5n10u3w) 6637 | -6/Lower Caves | Destroyed by H-66 Slayer with Gauss Rifle Last Messages --------------- 06466_ Found 46 Matter. 06466_ Found 67 Matter. 06467_ Acquired 67 matter. 06467_ Acquired Angular Momentum Engine. 06479_ System corrupted: Energy discharge (-23). 06481_ Acquired 1 matter. 06481_ Acquired 6 matter. 06482_ Penetrated by Slug. 06516_ Acquired 5 matter. 06530_ Acquired 1 matter. 06531_ Acquired 3 matter. 06547_ Acquired 2 matter. 06552_ Acquired Carbon-fiber Leg. 06560_ URTV0QQD,WTWCYS<5&F7>|#J%LUPJ3GHI3 06561_ AT-W03(k) breaks down the debris. 06563_ Acquired Hvy. Laser. 06573_ Acquired 2 matter. 06587_ Acquired 5 matter. 06591_ YF-KCQ(k) breaks down the debris. 06637_ Penetrated by Slug. Map ----- +----------------------------------------------------+ | ?????????????????????????????????????????????????? | | ?????????????????????????????????????????????????? | | ?????????????????????????????????????????????????? | | ?????????????????????????????????????????????????? | | ?????????????????????????????????????????????????? | | ?????????????????????????????????????????????????? | | ?????????????????????????????????????????????????? | | ?????????????????????????????????????????????????? | | ?????????????????????????????????????????????????? | | ?????????????????????????????????????????????????? | | ?????????????????????????????????????????####????? | | ????????????????????????????????????????## ##???? | | ???????????????????????????????????????## #???? | | ???????????????????????????####????????# #???? | | ??????????????????????????## ##???????# #???? | | ?????????????????????????## ###?????## #???? | | ???????????????????????### #?????## # ###?? | | ????????????????????#### % #??????# # ##? | | ??????????????#####?# k% #??????# ## | | ?????????????## ### % ##??????# % | | ???????????### ## #???????# | | ???????????# ##??????# | | ???????????### #####??# # | | ?????????????#### ##?## ### ## | | ????????????##### #### #?# #? | | ???????????## @ #?# #? | | ???????## #?# #? | | ????### h #### #######?# ## | | ?????# ############??# ##???????# | | ?????# #?????????????# #????????#### | | ?????# #?????????????# % #??????????# | | ?????# #????????????## ##??????????# | | ?????## % #????????????# % ##???????????# | | #??????## #???????????## ##???????????# | | ##??????#### #????######### ##??????????# | | ######????# ????# ### #####?????## | | ###???####%%##### ??## %%####### | | ##??????# %## ???## % | | #??????#% #???##% % | | ?????????# ##### | | #??????????# ## ### ###% | | #???????????# ### #?## | | #####???????# % % ###### | | ####???## % % % | | # ##?## | | ## ### % ######## | | ### ## ########## ## ##??????# | | ??## ######## ##????????###### #???????# | | ???###??????#### ##??????????????####%% #??????# | | ???????????????####??????????????????#####?????# | +----------------------------------------------------+ Best States ------------- Heat Dissipation 38 Energy Generation 18 Energy Capacity 290 Matter Stores 300 Matter Capacity 300 Sight Range 20 Terrain Scan Range 16 Terrain Scan Density 85 Jamming Range 12 Base Temperature (-) 150 Armor Coverage 600 Resistance: TH 20 Power Shielding 33 Weapon Shielding 66 Phase Shifting 5 Evasion (%) 55 Targeting Accuracy 8 Recoil Reduction 6 Salvage Targeting 1 Item Schematics ----------------- Arm. Treads | -9/Materials | Scanalyzed Hrd. Light Armor Plating | -9/Materials | Scanalyzed Hpw. Tractor Beam | -8/Materials | Hacked Robot Schematics ------------------ None Fabricated ------------ Nothing Repaired ---------- Arm. Treads | 43% | -8/Storage Studied --------- Imp. Hover Unit | -9/Materials | Hacked Alien Tech Used ----------------- None Achievements -------------- None Challenges ------------ None Game ------ Seed MachineHeatFirepult Manual? 0 Play Time 01:35:34 Cumulative 128.1 hours Start 2026.03.01 @ 13:16:36 End 2026.03.02 @ 21:26:06 Sessions 7 Manual Loads 0 Difficulty Rogue Special Mode None Game No. 154 Rogue 154 Adventurer 0 Explorer 0 Win Type - Total 1 Types 1/0/0/0/0/0/0/0/0/0 Lore% 27 Gallery% 46 Achievement% 32 Wizard Run 0 Options --------- Layout 0 ASCII 0 Keyboard 0 Movement Mouse Keybinds 0 Fullscreen 1 Font 24/Smallcaps Map View 76x50 Zoom Use 0% Tactical HUD 1 Map Filters NONE Filters NONE Steam 1 RUN: 8c1f4aa5-a145-4780-b4e6-6ada045ffa2a